bitfinex-derivatives/quotes_BTCF0:USTF0_20250315
["timestamp","ask_amount","ask_price","bid_price","bid_amount"]
[1742002898201,0.20511096,84183.0,84182.0,1.01565665]
[1742002898496,0.20511096,84183.0,84182.0,0.82035665]
[1742002898687,0.19798331,84183.0,84182.0,0.63688075]
[1742002898892,0.20922044,84183.0,84182.0,0.63688075]
[1742002900194,0.21222044,84183.0,84182.0,0.63688075]
[1742002900397,0.21422044,84183.0,84182.0,0.63688075]
[1742002901190,0.21429401,84183.0,84182.0,0.63688075]
[1742002901787,0.21431114,84183.0,84182.0,0.63688075]
[1742002902989,0.21437586,84183.0,84182.0,0.63688075]
[1742002903695,0.21437586,84183.0,84182.0,0.75565665]
[1742002904297,0.21437586,84183.0,84182.0,0.99565665]
[1742002904599,0.21437586,84183.0,84182.0,1.00565665]
[1742002904802,0.21437586,84183.0,84182.0,0.63688075]
[1742002905803,0.21436716,84183.0,84182.0,0.63688075]
[1742002906296,0.21436875,84183.0,84182.0,0.26]
[1742002906502,0.1187759,84182.0,84181.0,0.0001782]
[1742002906695,0.1187816,84178.0,84177.0,0.1187823]
[1742002906894,0.14176233,84178.0,84177.0,0.1287823]
[1742002907096,0.02298073,84178.0,84177.0,0.8587823]
[1742002907297,0.02298073,84178.0,84177.0,0.6938823]
[1742002907505,0.05759425,84178.0,84177.0,0.9038823]
[1742002907903,0.05759425,84178.0,84177.0,0.92002073]
[1742002908103,0.02769425,84178.0,84177.0,0.92002073]
[1742002908801,0.0302,84181.0,84180.0,0.1187788]
[1742002909009,0.0593807,84193.0,84192.0,0.1187604]
[1742002909309,0.2396411,84193.0,84192.0,0.1187604]
[1742002909604,0.2396411,84193.0,84192.0,0.3587604]
[1742002910608,0.0645,84193.0,84192.0,0.6887604]
[1742002910796,0.0695,84193.0,84192.0,0.6287604]
[1742002910991,0.0695,84193.0,84192.0,0.8687604]
[1742002911195,0.1882604,84193.0,84192.0,0.6087604]
[1742002911403,0.1882604,84193.0,84192.0,0.6387604]
[1742002911590,0.1882604,84193.0,84192.0,0.6487604]
[1742002911792,0.1882604,84193.0,84192.0,0.5987604]
[1742002912107,0.1882604,84193.0,84192.0,0.3587604]
[1742002912792,0.1882604,84193.0,84192.0,0.5987604]
[1742002912996,0.1882604,84193.0,84192.0,0.3587604]
[1742002913999,0.1781547,84188.0,84185.0,0.1187707]
[1742002914200,0.1781547,84188.0,84187.0,0.1187677]
[1742002914405,0.1781547,84188.0,84187.0,0.3887677]
[1742002916404,0.1811547,84188.0,84187.0,0.3887677]
[1742002917006,0.1811547,84188.0,84187.0,0.3516343]
[1742002917708,0.1217675,84188.0,84187.0,0.9116343]
[1742002917900,0.003,84188.0,84187.0,0.9116343]
[1742002918105,0.1217675,84188.0,84187.0,0.6516343]
[1742002918496,0.1217675,84188.0,84187.0,0.9216343]
[1742002918695,0.1217675,84188.0,84187.0,0.6516343]
[1742002919006,0.13337994,84188.0,84187.0,0.6516343]
[1742002919701,0.1217675,84188.0,84187.0,0.6516343]
[1742002920703,0.003,84188.0,84187.0,0.6516343]
[1742002920901,0.0142143,84188.0,84187.0,0.6516343]
[1742002921911,0.0142143,84188.0,84187.0,0.6830343]
[1742002922213,0.1187591,84194.0,84193.0,0.0593795]
[1742002922412,0.1187591,84194.0,84193.0,0.3293795]
[1742002922610,0.1187591,84194.0,84193.0,0.3937795]
[1742002923308,0.12053918,84196.0,84195.0,0.1187576]
[1742002923511,0.12053918,84196.0,84195.0,0.6287576]
[1742002923710,0.12053918,84196.0,84195.0,0.6598576]
[1742002924716,0.13214832,84196.0,84195.0,0.62272788]
[1742002924906,0.14086129,84196.0,84195.0,0.62272788]
[1742002926009,0.14086129,84196.0,84195.0,0.5411]
[1742002926203,0.14086129,84196.0,84195.0,0.2911]
[1742002926604,0.14086348,84196.0,84195.0,0.2911]
[1742002927209,0.14086348,84196.0,84195.0,0.4098576]
[1742002927817,0.1409105,84196.0,84195.0,0.2911]
[1742002928414,0.17261095,84196.0,84195.0,0.3216]
[1742002929220,0.17261095,84196.0,84195.0,0.28447015]
[1742002929803,0.16889798,84196.0,84195.0,0.40322775]
[1742002930009,0.16889798,84196.0,84195.0,0.34162775]
[1742002930211,0.16889798,84196.0,84195.0,0.59162775]
[1742002930411,0.16889798,84196.0,84195.0,0.34162775]
[1742002930907,0.16889798,84196.0,84195.0,0.22287015]
[1742002931304,0.16889798,84196.0,84195.0,0.34162775]
[1742002931809,0.19999798,84196.0,84195.0,0.34162775]
[1742002932710,0.19999798,84196.0,84195.0,0.22287015]
[1742002934021,0.19999798,84196.0,84195.0,0.34162775]
[1742002934224,0.2295082,84196.0,84195.0,0.31489407]
[1742002934523,0.118759,84194.0,84193.0,0.0898795]
[1742002934722,0.118759,84194.0,84193.0,0.3898795]
[1742002934723,0.15992802,84194.0,84193.0,0.3898795]
[1742002935021,0.16364104,84194.0,84193.0,0.3898795]
[1742002935221,0.1453934,84194.0,84193.0,0.3898795]
[1742002936216,0.1454343,84194.0,84193.0,0.3898795]
[1742002936727,0.1454343,84194.0,84193.0,0.01]
[1742002937028,0.1454343,84194.0,84180.0,0.02]
[1742002937029,0.1187731,84184.0,84183.0,0.530873]
[1742002937322,0.1454484,84184.0,84183.0,0.790873]
[1742002938036,0.2097484,84184.0,84183.0,0.790873]
[1742002938326,0.2117484,84184.0,84183.0,1.020873]
[1742002938525,0.2117484,84184.0,84183.0,1.083873]
[1742002938724,0.2117484,84184.0,84183.0,1.123873]
[1742002939022,0.2117484,84184.0,84183.0,1.353873]
[1742002940025,0.09284373,84184.0,84183.0,0.961773]
[1742002940219,0.21161683,84184.0,84183.0,0.628773]
[1742002940721,0.21161683,84184.0,84183.0,0.692173]
[1742002940933,0.21161683,84184.0,84183.0,0.723773]
[1742002942017,0.21166157,84184.0,84183.0,0.723773]
[1742002944023,0.21166157,84184.0,84183.0,0.963773]
[1742002944420,0.21166157,84184.0,84183.0,0.723773]
[1742002944621,0.21166157,84184.0,84183.0,0.473773]
[1742002945325,0.21166157,84184.0,84183.0,0.713773]
[1742002945536,0.21166157,84184.0,84183.0,0.723773]
[1742002945728,0.21166157,84184.0,84183.0,0.355]
[1742002945915,0.21166157,84184.0,84183.0,0.26]
[1742002946122,0.21166157,84184.0,84183.0,0.3787745]
[1742002946321,0.21166157,84184.0,84183.0,0.26]
[1742002948519,0.21166157,84184.0,84183.0,0.22286595]
[1742002949030,0.1187745,84183.0,84182.0,0.32366465]
[1742002949232,0.1187816,84178.0,84174.0,0.0628]
[1742002949423,0.13415342,84178.0,84177.0,0.27]
[1742002949618,0.19965342,84178.0,84177.0,0.25]
[1742002949832,0.19965342,84178.0,84177.0,0.28517367]
[1742002950225,0.1959404,84178.0,84177.0,0.28517367]
[1742002950426,0.20687209,84178.0,84177.0,0.28517367]
[1742002950817,0.20687209,84178.0,84177.0,0.27]
[1742002951018,0.20687209,84178.0,84177.0,0.02]
[1742002951222,0.20687209,84178.0,84169.0,0.21346781]
[1742002951223,0.0593939,84174.0,84169.0,0.21346781]
[1742002951429,0.1187929,84170.0,84169.0,0.25346781]
[1742002951723,0.14138339,84170.0,84169.0,0.49346781]
[1742002952336,0.17298339,84170.0,84169.0,0.21346781]
[1742002952629,0.17298339,84170.0,84169.0,0.002]
[1742002953126,0.20378339,84170.0,84169.0,0.002]
[1742002953522,0.2039386,84170.0,84169.0,0.002]
[1742002953718,0.20765277,84170.0,84169.0,0.002]
[1742002953931,0.20765277,84170.0,84169.0,0.272]
[1742002954130,0.20765277,84170.0,84169.0,0.3607943]
[1742002954335,0.20765277,84170.0,84169.0,0.3707943]
[1742002955022,0.2039386,84170.0,84169.0,0.002]
[1742002955526,0.20377384,84170.0,84169.0,0.002]
[1742002955930,0.20377384,84170.0,84169.0,0.272]
[1742002956131,0.20377384,84170.0,84169.0,0.002]
[1742002956324,0.20377384,84170.0,84169.0,0.232]
[1742002956836,0.20377384,84170.0,84169.0,0.3507943]
[1742002957034,0.20377384,84170.0,84169.0,0.1207943]
[1742002957533,0.20377384,84170.0,84169.0,0.002]
[1742002957729,0.20379978,84170.0,84169.0,0.002]
[1742002959323,0.19289042,84170.0,84169.0,0.002]
[1742002959531,0.20382681,84170.0,84169.0,0.002]
[1742002960544,0.20382681,84170.0,84169.0,0.282]
[1742002960739,0.20382681,84170.0,84169.0,0.272]
[1742002960935,0.20382681,84170.0,84169.0,0.262]
[1742002961333,0.20380532,84170.0,84169.0,0.252]
[1742002961728,0.20380532,84170.0,84169.0,0.262]
[1742002961934,0.20380532,84170.0,84169.0,0.3607943]
[1742002962139,0.02261242,84170.0,84169.0,0.8807943]
[1742002962333,0.2430782,84177.0,84176.0,0.1187844]
[1742002962529,0.2430782,84177.0,84176.0,0.7195844]
[1742002962931,0.2430782,84177.0,84176.0,0.7823844]
[1742002964930,0.2430782,84177.0,84176.0,1.0123844]
[1742002965132,0.2430782,84177.0,84176.0,0.0628]
[1742002965340,0.2430782,84177.0,84176.0,0.3228]
[1742002965531,0.2430782,84177.0,84176.0,0.1815844]
[1742002965731,0.2430782,84177.0,84176.0,0.4215844]
[1742002966235,0.24679219,84177.0,84176.0,0.40444441]
[1742002966744,0.2430782,84177.0,84176.0,0.14444441]
[1742002966944,0.2430782,84177.0,84176.0,0.35730419]
[1742002967138,0.2430782,84177.0,84176.0,0.10730419]
[1742002967644,0.2430782,84177.0,84176.0,0.35730419]
[1742002968057,0.2430782,84177.0,84176.0,0.39730419]
[1742002968434,0.2430782,84177.0,84176.0,0.35730419]
[1742002968740,0.2430782,84177.0,84176.0,0.10730419]
[1742002968941,0.2430782,84177.0,84176.0,0.37730419]
[1742002969142,0.2430782,84177.0,84176.0,0.10730419]
[1742002969335,0.2430782,84177.0,84176.0,0.34730419]
[1742002969946,0.1187844,84176.0,84175.0,0.0301]
[1742002970139,0.1187844,84176.0,84175.0,0.3101]
[1742002970339,0.1832844,84176.0,84175.0,0.3101]
[1742002970537,0.1832844,84176.0,84175.0,0.0301]
[1742002971045,0.1832844,84176.0,84175.0,0.2701]
[1742002971245,0.1832844,84176.0,84175.0,0.3101]
[1742002971440,0.1832844,84176.0,84175.0,0.0301]
[1742002971748,0.1832844,84176.0,84175.0,0.3001]
[1742002971941,0.1832844,84176.0,84175.0,0.6988858]
[1742002972144,0.18699833,84176.0,84175.0,0.5801]
[1742002972350,0.19867224,84176.0,84175.0,0.6588858]
[1742002972558,0.07988784,84176.0,84175.0,1.0196858]
[1742002972854,0.07617391,84176.0,84175.0,1.0196858]
[1742002973044,0.07611827,84176.0,84175.0,1.2796858]
[1742002973238,0.07611827,84176.0,84175.0,1.0196858]
[1742002973433,0.19490267,84176.0,84175.0,1.2696858]
[1742002973638,0.1832844,84176.0,84175.0,1.0196858]
[1742002974540,0.19412727,84176.0,84175.0,1.2496858]
[1742002974839,0.19412727,84176.0,84175.0,1.0196858]
[1742002976048,0.19413387,84176.0,84175.0,1.0196858]
[1742002976438,0.19413387,84176.0,84175.0,1.0514858]
[1742002976845,0.1832844,84176.0,84175.0,1.2714858]
[1742002977139,0.19413243,84176.0,84175.0,1.3214858]
[1742002977443,0.19413243,84176.0,84175.0,1.0514858]
[1742002977645,0.19413243,84176.0,84175.0,1.2714858]
[1742002977950,0.19413243,84176.0,84175.0,1.0514858]
[1742002978150,0.19413243,84176.0,84175.0,1.3114858]
[1742002978346,0.19413243,84176.0,84175.0,1.3214858]
[1742002978650,0.19413243,84176.0,84175.0,1.2814858]
[1742002978850,0.19412728,84176.0,84175.0,1.3014858]
[1742002979252,0.19412728,84176.0,84175.0,1.0514858]
[1742002980552,0.19412728,84176.0,84175.0,1.0614858]
[1742002980750,0.07534288,84176.0,84175.0,1.3114858]
[1742002980950,0.19412728,84176.0,84175.0,1.0514858]
[1742002982657,0.20574896,84176.0,84175.0,1.0514858]
[1742002982852,0.20574896,84176.0,84175.0,0.7495858]
[1742002983069,0.20574896,84176.0,84175.0,0.6308]
[1742002983556,0.20574896,84176.0,84175.0,0.7495858]
[1742002983948,0.19490608,84176.0,84175.0,0.7495858]
[1742002984143,0.20586639,84176.0,84175.0,0.6308]
[1742002984549,0.20586639,84176.0,84175.0,0.7495858]
[1742002985257,0.20586639,84176.0,84175.0,0.9995858]
[1742002985560,0.20586639,84176.0,84168.0,0.0316]
[1742002985561,0.1187957,84168.0,84167.0,0.01465273]
[1742002985754,0.1187957,84168.0,84166.0,0.1187985]
[1742002985755,0.1187971,84167.0,84166.0,0.1187985]
[1742002985960,0.1188027,84163.0,84162.0,0.1188032]
[1742002986158,0.1188027,84163.0,84162.0,0.6888032]
[1742002986159,0.14132388,84163.0,84162.0,0.6888032]
[1742002986460,0.14131491,84163.0,84162.0,0.4088032]
[1742002986854,0.20141491,84163.0,84162.0,0.6688032]
[1742002987056,0.20141491,84163.0,84162.0,0.4088032]
[1742002987251,0.20141491,84163.0,84162.0,0.6988032]
[1742002987452,0.20512924,84163.0,84162.0,0.7018032]
[1742002987650,0.20512924,84163.0,84162.0,0.7048032]
[1742002987860,0.20512924,84163.0,84162.0,0.6948032]
[1742002988557,0.19350811,84163.0,84162.0,0.4148032]
[1742002988762,0.20515095,84163.0,84162.0,0.6648032]
[1742002989063,0.19425987,84163.0,84162.0,0.6648032]
[1742002989453,0.19425987,84163.0,84162.0,0.31010569]
[1742002989759,0.18261703,84163.0,84162.0,0.276]
[1742002990163,0.18261703,84163.0,84162.0,0.256]
[1742002990368,0.22375473,84163.0,84162.0,0.256]
[1742002990570,0.22375473,84163.0,84162.0,0.34806015]
[1742002990754,0.22429864,84163.0,84162.0,0.34806015]
[1742002991662,0.22429864,84163.0,84162.0,0.3488042]
[1742002992060,0.22429864,84163.0,84162.0,0.23]
[1742002992662,0.118807,84160.0,84159.0,0.3608]
[1742002992965,0.16420294,84160.0,84159.0,0.8308]
[1742002993166,0.16420294,84160.0,84159.0,0.8554638]
[1742002993356,0.16420294,84160.0,84159.0,0.6154638]
[1742002993558,0.19590294,84160.0,84159.0,0.3808]
[1742002993765,0.20184612,84160.0,84159.0,0.61405565]
[1742002993963,0.20285139,84160.0,84159.0,0.61805565]
[1742002994268,0.20285139,84160.0,84159.0,0.58805565]
[1742002994660,0.20285139,84160.0,84159.0,0.35805565]
[1742002994862,0.20285139,84160.0,84159.0,0.62805565]
[1742002995163,0.20285139,84160.0,84159.0,0.35805565]
[1742002995362,0.55197818,84160.0,84159.0,0.004]
[1742002995556,0.19117818,84160.0,84159.0,0.004]
[1742002996455,0.19117818,84160.0,84159.0,0.005]
[1742002997661,0.19093032,84160.0,84159.0,0.005]
[1742002998166,0.1188183,84152.0,84151.0,0.00178254]
[1742002998465,0.15924162,84152.0,84151.0,0.00178254]
[1742002999269,0.22184162,84152.0,84151.0,0.00178254]
[1742003000369,0.22284162,84152.0,84151.0,0.00178254]
[1742003001158,0.1188267,84146.0,84145.0,0.01422182]
[1742003001369,0.15925002,84146.0,84145.0,0.1]
[1742003001673,0.15925911,84146.0,84145.0,0.09]
[1742003002161,0.22395911,84146.0,84145.0,0.09]
[1742003002770,0.22395911,84146.0,84145.0,0.2098282]
[1742003002971,0.22395911,84146.0,84145.0,0.4698282]
[1742003003273,0.22395911,84146.0,84145.0,0.2098282]
[1742003003668,0.10513241,84146.0,84145.0,0.4598282]
[1742003003868,0.10513241,84146.0,84145.0,0.4698282]
[1742003004161,0.10513241,84146.0,84145.0,0.5316282]
[1742003004573,0.09918923,84146.0,84145.0,0.5316282]
[1742003004774,0.09918923,84146.0,84145.0,0.7716282]
[1742003005076,0.21801593,84146.0,84145.0,0.5316282]
[1742003005586,0.19907753,84146.0,84145.0,0.5316282]
[1742003005774,0.19907753,84146.0,84145.0,0.2816282]
[1742003005976,0.19907753,84146.0,84145.0,0.5116282]
[1742003006170,0.08025083,84146.0,84145.0,0.2816282]
[1742003006476,0.06841433,84146.0,84145.0,0.8316282]
[1742003006668,0.06841433,84146.0,84145.0,0.5716282]
[1742003006869,0.0647,84146.0,84145.0,0.8516282]
[1742003007066,0.0647,84146.0,84145.0,0.5716282]
[1742003007272,0.0647,84146.0,84145.0,0.7916282]
[1742003007776,0.0647,84146.0,84145.0,0.5316282]
[1742003007976,0.0647,84146.0,84145.0,0.2716282]
[1742003007977,0.1835267,84146.0,84145.0,0.2716282]
[1742003008178,0.1835267,84146.0,84145.0,0.5216282]
[1742003008478,0.1835267,84146.0,84145.0,0.7816282]
[1742003008777,0.1835267,84146.0,84145.0,0.5316282]
[1742003009071,0.1835267,84146.0,84145.0,0.7816282]
[1742003009472,0.1835267,84146.0,84145.0,0.5316282]
[1742003010071,0.0647,84146.0,84145.0,0.5316282]
[1742003010279,0.1835267,84146.0,84145.0,0.5316282]
[1742003010964,0.0647,84146.0,84145.0,0.7816282]
[1742003011168,0.0647,84146.0,84145.0,0.5316282]
[1742003011369,0.0647,84146.0,84145.0,0.7716282]
[1742003012081,0.0001782,84160.0,84159.0,0.1188084]
[1742003012280,0.0001782,84160.0,84159.0,0.6088084]
[1742003012577,0.0001782,84160.0,84159.0,0.6712084]
[1742003012772,0.00178302,84163.0,84162.0,0.1188042]
[1742003012979,0.00178302,84163.0,84162.0,1.0396042]
[1742003013181,0.00178302,84163.0,84162.0,1.0696042]
[1742003013470,0.0593892,84181.0,84162.0,1.0696042]
[1742003013471,0.1491816,84179.0,84178.0,0.1187816]
[1742003013674,0.1187872,84174.0,84173.0,0.3608]
[1742003013878,0.1187872,84174.0,84173.0,0.6208]
[1742003014176,0.0593943,84173.0,84166.0,0.0644]
[1742003014374,0.1187971,84167.0,84166.0,0.1931985]
[1742003014772,0.1187971,84167.0,84166.0,0.4531985]
[1742003015083,0.1187971,84167.0,84166.0,0.01]
[1742003015275,0.1811971,84167.0,84166.0,0.01]
[1742003015871,0.1811971,84167.0,84166.0,0.0418]
[1742003016086,0.1861971,84167.0,84166.0,0.3218]
[1742003016380,0.1901971,84167.0,84166.0,0.0418]
[1742003016576,0.1901971,84167.0,84166.0,0.01]
[1742003017974,0.1901971,84167.0,84166.0,0.1287985]
[1742003018366,0.1901971,84167.0,84166.0,0.1605985]
[1742003018765,0.0714,84167.0,84166.0,0.4112985]
[1742003018977,0.0394,84167.0,84166.0,0.4743985]
[1742003019177,0.009,84167.0,84166.0,0.8051985]
[1742003020772,0.1595971,84167.0,84166.0,0.8051985]
[1742003026671,0.0408,84167.0,84166.0,0.8051985]
[1742003026877,0.009,84167.0,84166.0,0.8151985]
[1742003027086,0.009,84167.0,84166.0,1.0851985]
[1742003027284,0.009,84167.0,84166.0,0.8051985]
[1742003027587,0.009,84167.0,84166.0,1.0751985]
[1742003027783,0.009,84167.0,84166.0,1.1051985]
[1742003027979,0.009,84167.0,84166.0,1.0451985]
[1742003028382,0.009,84167.0,84166.0,1.0351985]
[1742003028681,0.009,84167.0,84166.0,0.8151985]
[1742003028876,0.009,84167.0,84166.0,1.0551985]
[1742003029075,0.009,84167.0,84166.0,1.0651985]
[1742003029281,0.009,84167.0,84166.0,1.0551985]
[1742003029587,0.009,84167.0,84166.0,1.0451985]
[1742003029779,0.009,84167.0,84166.0,0.8051985]
[1742003029977,0.009,84167.0,84166.0,1.0751985]
[1742003030177,0.0739,84167.0,84166.0,1.0751985]
[1742003030389,0.0739,84167.0,84166.0,1.1051985]
[1742003030687,0.0739,84167.0,84166.0,0.8351985]
[1742003031088,0.0739,84167.0,84166.0,1.0551985]
[1742003031290,0.0739,84167.0,84166.0,0.8051985]
[1742003031681,0.0739,84167.0,84166.0,1.0751985]
[1742003032283,0.0739,84167.0,84166.0,0.8751985]
[1742003032484,0.1926971,84167.0,84166.0,0.8051985]
[1742003032685,0.0739,84167.0,84166.0,0.8051985]
[1742003034590,0.0739,84167.0,84166.0,0.8351985]
[1742003035287,0.0739,84167.0,84166.0,0.8051985]
[1742003036091,0.1926971,84167.0,84166.0,0.7095985]
[1742003036492,0.1926971,84167.0,84166.0,0.8021985]
[1742003044926,0.0739,84167.0,84166.0,0.8021985]
[1742003045115,0.0739,84167.0,84166.0,0.8221985]
[1742003045316,0.0739,84167.0,84166.0,0.8021985]
[1742003045317,0.1926971,84167.0,84166.0,0.8021985]
[1742003049223,0.1926971,84167.0,84166.0,0.8321985]
[1742003049524,0.1926971,84167.0,84166.0,0.8021985]
[1742003049724,0.1926971,84167.0,84166.0,0.8321985]
[1742003050123,0.0739,84167.0,84166.0,1.0521985]
[1742003050329,0.0739,84167.0,84166.0,0.8321985]
[1742003050516,0.0739,84167.0,84166.0,1.0721985]
[1742003051116,0.0739,84167.0,84166.0,0.8321985]
[1742003051522,0.0739,84167.0,84166.0,1.0921985]
[1742003051919,0.0689,84167.0,84166.0,1.1121985]
[1742003052121,0.0689,84167.0,84166.0,0.8331985]
[1742003052426,0.0649,84167.0,84166.0,1.0541985]
[1742003052621,0.0649,84167.0,84166.0,1.0741985]
[1742003053020,0.0649,84167.0,84166.0,1.0851985]
[1742003053220,0.0649,84167.0,84166.0,0.8551985]
[1742003053423,0.0649,84167.0,84166.0,1.29866631]
[1742003053825,0.1836971,84167.0,84166.0,0.92606631]
[1742003054829,0.1836971,84167.0,84166.0,0.98696631]
[1742003055017,0.1836971,84167.0,84166.0,1.01696631]
[1742003055218,0.1836971,84167.0,84166.0,0.98696631]
[1742003055422,0.1836971,84167.0,84166.0,0.98596631]
[1742003055930,0.1836971,84167.0,84166.0,0.7724985]
[1742003056131,0.1836971,84167.0,84166.0,0.8224985]
[1742003056425,0.1836971,84167.0,84166.0,0.7724985]
[1742003056626,0.0649,84167.0,84166.0,0.8024985]
[1742003056834,0.0649,84167.0,84166.0,1.0424985]
[1742003057130,0.0649,84167.0,84166.0,0.8024985]
[1742003058330,0.1187879,84174.0,84173.0,0.1781794]
[1742003058633,0.1187879,84174.0,84173.0,1.1302794]
[1742003059138,0.1187879,84174.0,84173.0,1.0114936]
[1742003059626,0.1217879,84174.0,84173.0,0.9514936]
[1742003060034,0.1217879,84174.0,84173.0,0.9914936]
[1742003061832,0.1207879,84174.0,84173.0,0.9914936]
[1742003062128,0.1858879,84174.0,84173.0,0.9914936]
[1742003062531,0.1858879,84174.0,84173.0,0.9814936]
[1742003062532,0.1848879,84174.0,84173.0,0.9814936]
[1742003062729,0.1858879,84174.0,84173.0,0.7214936]
[1742003062932,0.1858879,84174.0,84173.0,0.9914936]
[1742003063322,0.1858879,84174.0,84173.0,0.9514936]
[1742003063734,0.1858879,84174.0,84173.0,0.9714936]
[1742003064329,0.0671,84174.0,84173.0,0.9714936]
[1742003064628,0.0671,84174.0,84173.0,0.9814936]
[1742003064829,0.0671,84174.0,84173.0,1.2527936]
[1742003065029,0.0671,84174.0,84173.0,1.0027936]
[1742003065627,0.0349,84174.0,84173.0,1.0027936]
[1742003065822,0.031,84178.0,84177.0,0.118783]
[1742003066022,0.0331,84180.0,84179.0,0.1187802]
[1742003066226,0.0641,84180.0,84179.0,0.9895802]
[1742003066824,0.1828788,84180.0,84179.0,1.0538802]
[1742003068334,0.1858788,84180.0,84179.0,1.0538802]
[1742003068838,0.1888788,84180.0,84179.0,1.0538802]
[1742003069932,0.1888788,84180.0,84179.0,0.9035]
[1742003070139,0.1888788,84180.0,84179.0,0.7922802]
[1742003070338,0.1888788,84180.0,84179.0,1.0522802]
[1742003072041,0.1888788,84180.0,84179.0,1.06124754]
[1742003073329,0.0701,84180.0,84179.0,1.06124754]
[1742003073528,0.0701,84180.0,84179.0,1.30124754]
[1742003073743,0.0701,84180.0,84179.0,1.09184754]
[1742003074239,0.0701,84180.0,84179.0,1.36184754]
[1742003074644,0.0701,84180.0,84179.0,1.09184754]
[1742003074937,0.0701,84180.0,84179.0,1.36184754]
[1742003075144,0.1888788,84180.0,84179.0,1.09184754]
[1742003075442,0.0701,84180.0,84179.0,1.09184754]
[1742003076235,0.006,84180.0,84179.0,1.33184754]
[1742003076436,0.006,84180.0,84179.0,1.34184754]
[1742003077342,0.0001782,84182.0,84181.0,0.1187773]
[1742003077535,0.0308,84184.0,84182.0,0.1187759]
[1742003077536,0.0322,84183.0,84182.0,0.1187759]
[1742003077842,0.1187619,84192.0,84191.0,0.0593816]
[1742003078041,0.1808619,84192.0,84191.0,0.91377199]
[1742003078440,0.1808619,84192.0,84191.0,0.94687199]
[1742003079240,0.1908619,84192.0,84191.0,0.94687199]
[1742003079635,0.0413,84192.0,84191.0,0.94687199]
[1742003080039,0.1600618,84192.0,84191.0,0.94687199]
[1742003080547,0.0413,84192.0,84191.0,0.94687199]
[1742003080742,0.1600618,84192.0,84191.0,0.94687199]
[1742003081539,0.1910618,84192.0,84191.0,0.94687199]
[1742003082943,0.0723,84192.0,84191.0,0.94687199]
[1742003083450,0.1910618,84192.0,84191.0,0.94687199]
[1742003091865,0.1910618,84192.0,84191.0,0.97877199]
[1742003100761,0.1910618,84192.0,84191.0,0.85439039]
[1742003100961,0.1187731,84184.0,84179.0,0.00896734]
[1742003101463,0.1187731,84184.0,84183.0,0.2401782]
[1742003101654,0.1187731,84184.0,84183.0,0.2701782]
[1742003101857,0.1187731,84184.0,84183.0,0.2501782]
[1742003102362,0.1187731,84184.0,84183.0,0.0001782]
[1742003102559,0.1217731,84184.0,84183.0,0.2501782]
[1742003102756,0.1217731,84184.0,84183.0,0.2801782]
[1742003103265,0.1217731,84184.0,84183.0,0.2901782]
[1742003103454,0.1237731,84184.0,84183.0,0.2601782]
[1742003103855,0.1237731,84184.0,84183.0,0.6189527]
[1742003104159,0.1237731,84184.0,84183.0,0.4110527]
[1742003104467,0.1237731,84184.0,84183.0,0.6832527]
[1742003105861,0.0593803,84193.0,84183.0,0.6832527]
[1742003105862,0.0001782,84200.0,84199.0,0.118752]
[1742003106054,0.0001782,84200.0,84199.0,0.618752]
[1742003106251,0.1189287,84200.0,84199.0,0.618752]
[1742003106561,0.1189287,84200.0,84199.0,0.651752]
[1742003106761,0.0001782,84200.0,84199.0,0.651752]
[1742003107158,0.0661782,84200.0,84199.0,0.683352]
[1742003107663,0.03,84208.0,84199.0,0.683352]
[1742003107664,0.1187403,84208.0,84207.0,0.1187393]
[1742003107871,0.1187403,84208.0,84207.0,0.6387393]
[1742003108068,0.00178188,84209.0,84208.0,0.1187393]
[1742003108368,0.12051978,84209.0,84208.0,1.0854393]
[1742003108557,0.18211978,84209.0,84208.0,1.0854393]
[1742003109568,0.18211978,84209.0,84208.0,1.09884121]
[1742003109952,0.0001782,84217.0,84208.0,1.09884121]
[1742003109953,0.0001782,84217.0,84215.0,0.118728]
[1742003110254,0.1189052,84217.0,84216.0,0.542128]
[1742003110454,0.1189052,84217.0,84216.0,1.012128]
[1742003111468,0.1249052,84217.0,84216.0,1.012128]
[1742003112561,0.0001782,84217.0,84216.0,1.012128]
[1742003112761,0.0895612,84220.0,84217.0,0.1780864]
[1742003113069,0.208285,84220.0,84219.0,0.1187238]
[1742003113264,0.178085,84220.0,84219.0,0.6287238]
[1742003113459,0.178085,84220.0,84219.0,0.7243238]
[1742003114475,0.179085,84220.0,84219.0,0.7243238]
[1742003120762,0.001,84220.0,84219.0,0.7243238]
[1742003120965,0.1188895,84228.0,84227.0,0.1187125]
[1742003121160,0.1188895,84228.0,84227.0,0.9695125]
[1742003121365,0.1188893,84228.0,84227.0,0.9695125]
[1742003121874,0.0302,84232.0,84231.0,0.1187068]
[1742003122186,0.0303,84243.0,84236.0,0.0593493]
[1742003122384,0.1489899,84243.0,84242.0,0.1186913]
[1742003122587,0.1489899,84243.0,84242.0,0.6286913]
[1742003122779,0.1489899,84243.0,84242.0,0.9894913]
[1742003122975,0.0593442,84245.0,84244.0,0.1186885]
[1742003123175,0.0593442,84245.0,84244.0,0.5986885]
[1742003124389,0.0593442,84245.0,84244.0,0.6634885]
[1742003126589,0.1186841,84248.0,84247.0,0.1186829]
[1742003126894,0.1186841,84248.0,84247.0,0.6486829]
[1742003127088,0.1186841,84248.0,84247.0,0.6812829]
[1742003127287,0.1186841,84248.0,84247.0,0.7138829]
[1742003128691,0.0593404,84250.0,84249.0,0.1186815]
[1742003128986,0.96327418,84260.0,84258.0,0.1186688]
[1742003128987,0.1850674,84259.0,84258.0,0.1186688]
[1742003129192,0.2158674,84259.0,84258.0,0.8108]
[1742003129985,0.2158674,84259.0,84258.0,0.9294688]
[1742003130181,0.2158674,84259.0,84258.0,0.9094688]
[1742003130392,0.2158674,84259.0,84258.0,0.9194688]
[1742003130589,0.2158674,84259.0,84258.0,0.9394688]
[1742003131194,0.2158674,84259.0,84258.0,0.9294688]
[1742003131489,0.2158674,84259.0,84258.0,0.8894688]
[1742003131682,0.2158674,84259.0,84258.0,0.9194688]
[1742003132493,0.2158674,84259.0,84258.0,0.8994688]
[1742003132890,0.2158674,84259.0,84258.0,0.9031846]
[1742003133093,0.4201253,84271.0,84266.0,0.1186575]
[1742003133295,0.11877164,84267.0,84266.0,0.6386575]
[1742003133492,0.11877164,84267.0,84266.0,0.6486575]
[1742003133693,0.118656,84268.0,84267.0,0.1186561]
[1742003133889,0.118656,84268.0,84267.0,0.6598561]
[1742003134496,0.0329,84268.0,84267.0,0.6598561]
[1742003134886,0.1186466,84274.0,84273.0,0.0593231]
[1742003135086,0.1186466,84274.0,84273.0,0.3315231]
[1742003135493,0.1822466,84274.0,84273.0,0.2722]
[1742003135997,0.1822466,84274.0,84273.0,0.3908477]
[1742003140298,0.1822466,84274.0,84273.0,0.2722]